fUSD/lending_fUSD_20240708
["ID","MTS","AMOUNT","RATE_DAILY","PERIOD"]
[331480548,1720438004834,-537.46,0.00049863,120]
[331480549,1720438004868,-500.0,0.00049863,120]
[331480550,1720438004903,-500.0,0.00049863,120]
[331480551,1720438004939,-779.78,0.00049863,120]
[331480552,1720438004974,-1029.1,0.00049863,120]
[331480553,1720438005011,-500.0,0.00049863,120]
[331480554,1720438005046,-2932.79,0.00049863,120]
[331480555,1720438005082,-500.0,0.00049863,120]
[331480556,1720438005115,-724.0,0.00049863,120]
[331480557,1720438005148,-500.0,0.00049863,120]
[331480558,1720438005180,-500.0,0.00049863,120]
[331480559,1720438005214,-500.0,0.00049863,120]
[331480560,1720438005249,-745.19,0.00049863,120]
[331480561,1720438005287,-500.0,0.00049863,120]
[331480562,1720438005327,-500.0,0.00049863,120]
[331480563,1720438005362,-777.31,0.00049863,120]
[331480564,1720438005397,-2842.73,0.00049863,120]
[331480565,1720438005432,-731.02,0.00049863,120]
[331480566,1720438005468,-3212.9,0.00049863,120]
[331480567,1720438005503,-500.0,0.00049863,120]
[331480568,1720438005539,-970.78,0.00049863,120]
[331480569,1720438005576,-500.0,0.00049863,120]
[331480570,1720438005611,-500.0,0.00049863,120]
[331480571,1720438005644,-500.0,0.00049863,120]
[331480572,1720438005677,-500.0,0.00049863,120]
[331480573,1720438005711,-500.0,0.00049863,120]
[331480574,1720438005745,-500.0,0.00049863,120]
[331480575,1720438005778,-866.32,0.00049863,120]
[331480576,1720438005813,-656.72,0.00049863,120]
[331480577,1720438005849,-500.0,0.00049863,120]
[331480578,1720438005881,-2301.35,0.00049863,120]
[331480579,1720438005913,-531.36533454,0.00049863,120]
[331480580,1720438005948,-500.0,0.00049863,120]
[331480581,1720438005982,-1651.75,0.00049863,120]
[331480582,1720438006014,-2707.16,0.00049863,120]
[331480583,1720438006046,-1487.69,0.00049863,120]
[331480584,1720438006083,-500.0,0.00049863,120]
[331480585,1720438006118,-1102.07,0.00049863,120]
[331480586,1720438006152,-1851.41,0.00049863,120]
[331480587,1720438006185,-500.0,0.00049863,120]
[331480588,1720438006224,-980.85,0.00049863,120]
[331480589,1720438006257,-500.0,0.00049863,120]
[331480590,1720438006292,-500.0,0.00049863,120]
[331480591,1720438006330,-500.0,0.00049863,120]
[331480592,1720438006366,-4705.08,0.00049863,120]
[331480593,1720438006400,-1550.67,0.00049863,120]
[331480594,1720438006434,-500.0,0.00049863,120]
[331480595,1720438006468,-500.0,0.00049863,120]
[331480596,1720438006504,-855.98,0.00049863,120]
[331480597,1720438006538,-500.0,0.00049863,120]
[331480598,1720438006575,-3524.54,0.00049863,120]
[331480599,1720438006613,-500.0,0.00049863,120]
[331480600,1720438006647,-500.0,0.00049863,120]
[331480601,1720438006683,-500.0,0.00049863,120]
[331480602,1720438006803,-500.0,0.00049863,120]
[331480603,1720438006839,-500.0,0.00049863,120]
[331480604,1720438006875,-500.0,0.00049863,120]
[331480605,1720438006908,-3542.65,0.00049863,120]
[331480606,1720438006945,-500.0,0.00049863,120]
[331480607,1720438006982,-500.0,0.00049863,120]
[331480608,1720438007017,-500.0,0.00049863,120]
[331480609,1720438007052,-569.31,0.00049863,120]
[331480610,1720438007087,-1404.03,0.00049863,120]
[331480611,1720438007121,-520.47,0.00049863,120]
[331480612,1720438007153,-500.0,0.00049863,120]
[331480613,1720438007185,-500.0,0.00049863,120]
[331480614,1720438007219,-500.0,0.00049863,120]
[331480615,1720438007252,-500.0,0.00049863,120]
[331480616,1720438007288,-1256.58,0.00049863,120]
[331480617,1720438007323,-500.0,0.00049863,120]
[331480618,1720438007356,-500.0,0.00049863,120]
[331480619,1720438007389,-500.0,0.00049863,120]
[331480620,1720438007423,-4775.84,0.00049863,120]
[331480621,1720438007457,-804.05,0.00049863,120]
[331480622,1720438007493,-500.0,0.00049863,120]
[331480623,1720438007526,-500.0,0.00049863,120]
[331480624,1720438007559,-2135.26,0.00049863,120]
[331480625,1720438007593,-500.0,0.00049863,120]
[331480626,1720438007627,-536.3,0.00049863,120]
[331480627,1720438007660,-802.42,0.00049863,120]
[331480628,1720438007693,-500.0,0.00049863,120]
[331480629,1720438007728,-500.0,0.00049863,120]
[331480630,1720438007764,-968.64,0.00049863,120]
[331480631,1720438007797,-500.0,0.00049863,120]
[331480632,1720438007831,-1082.19,0.00049863,120]
[331480633,1720438007867,-500.0,0.00049863,120]
[331480634,1720438007902,-560.24243669,0.00049863,120]
[331480635,1720438007936,-500.0,0.00049863,120]
[331480636,1720438007971,-500.0,0.00049863,120]
[331480637,1720438008005,-500.0,0.00049863,120]
[331480638,1720438008040,-1570.5,0.00049863,120]
[331480639,1720438008075,-500.0,0.00049863,120]
[331480640,1720438008110,-500.0,0.00049863,120]
[331480641,1720438008145,-1935.41,0.00049863,120]
[331480642,1720438008177,-500.0,0.00049863,120]
[331480643,1720438008208,-500.0,0.00049863,120]
[331480644,1720438008243,-500.0,0.00049863,120]
[331480645,1720438008277,-500.0,0.00049863,120]
[331480646,1720438008309,-500.0,0.00049863,120]
[331480647,1720438008341,-1670.66,0.00049863,120]
[331480648,1720438008373,-500.0,0.00049863,120]
[331480649,1720438008405,-500.0,0.00049863,120]
[331480650,1720438008436,-5085.83,0.00049863,120]
[331480651,1720438008468,-500.0,0.00049863,120]
[331480652,1720438008502,-500.0,0.00049863,120]
[331480653,1720438008535,-500.0,0.00049863,120]
[331480654,1720438008568,-500.0,0.00049863,120]
[331480655,1720438008603,-500.0,0.00049863,120]
[331480656,1720438008638,-457.33538518,0.00049863,120]
[331480657,1720438008672,-222.99734201,0.00049863,120]
[331480658,1720438008707,-500.0,0.00049863,120]
[331480659,1720438008745,-500.0,0.00049863,120]
[331480660,1720438008781,-500.0,0.00049863,120]
[331480661,1720438008818,-500.0,0.00049863,120]
[331480662,1720438008854,-500.0,0.00049863,120]
[331480663,1720438008892,-500.0,0.00049863,120]
[331480664,1720438008930,-500.0,0.00049863,120]
[331480665,1720438008967,-500.0,0.00049863,120]
[331480666,1720438009003,-771.26,0.00049863,120]
[331480667,1720438009038,-500.0,0.00049863,120]
[331480668,1720438009074,-500.0,0.00049863,120]
[331480669,1720438009110,-228.23642071,0.00049863,120]
[331480670,1720438009146,-500.0,0.00049863,120]
[331480671,1720438009183,-20855.15,0.00049863,120]
[331480672,1720438009220,-813.82,0.00049863,120]
[331480673,1720438009255,-500.0,0.00049863,120]
[331480674,1720438009292,-500.0,0.00049863,120]
[331480675,1720438009335,-2200.14,0.00049863,120]
[331480676,1720438009377,-402.69068557,0.00049863,120]
[331480677,1720438009418,-3881.42,0.00049863,120]
[331480678,1720438009459,-1326.11,0.00049863,120]
[331480679,1720438009498,-1256.69,0.00049863,120]
[331480680,1720438009537,-500.0,0.00049863,120]
[331480681,1720438009573,-500.0,0.00049863,120]
[331480682,1720438009610,-1747.96,0.00049863,120]
[331480683,1720438009647,-500.0,0.00049863,120]
[331480684,1720438009683,-500.0,0.00049863,120]
[331480685,1720438009717,-502.30730478,0.00049863,120]
[331480686,1720438009752,-500.0,0.00049863,120]
[331480687,1720438009789,-189.93742121,0.00049863,120]
[331480688,1720438009827,-500.0,0.00049863,120]
[331480689,1720438009864,-530.51,0.00049863,120]
[331480690,1720438009900,-500.0,0.00049863,120]
[331480691,1720438009938,-10457.36,0.00049863,120]
[331480692,1720438009977,-500.0,0.00049863,120]
[331480693,1720438010013,-500.0,0.00049863,120]
[331480694,1720438010048,-500.0,0.00049863,120]
[331480695,1720438010089,-3955.09,0.00049863,120]
[331480696,1720438010129,-500.0,0.00049863,120]
[331480697,1720438010169,-356.68817317,0.00049863,120]
[331480698,1720438010210,-500.0,0.00049863,120]
[331480699,1720438010249,-941.75,0.00049863,120]
[331480700,1720438010287,-500.0,0.00049863,120]
[331480701,1720438010326,-240.21123136,0.00049863,120]
[331480702,1720438010366,-500.0,0.00049863,120]
[331480703,1720438010408,-1163.07,0.00049863,120]
[331480704,1720438010449,-500.0,0.00049863,120]
[331480705,1720438010487,-500.0,0.00049863,120]
[331480706,1720438010650,-500.0,0.00049863,120]
[331480707,1720438010687,-500.0,0.00049863,120]
[331480708,1720438010722,-500.0,0.00049863,120]
[331480709,1720438010758,-500.0,0.00049863,120]
[331480710,1720438010794,-500.0,0.00049863,120]
[331480711,1720438010834,-500.0,0.00049863,120]
[331480712,1720438010870,-500.0,0.00049863,120]
[331480713,1720438010905,-500.0,0.00049863,120]
[331480714,1720438010940,-500.0,0.00049863,120]
[331480715,1720438010976,-500.0,0.00049863,120]
[331480716,1720438011019,-915.13,0.00049863,120]
[331480717,1720438011057,-500.0,0.00049863,120]
[331480718,1720438011094,-489.57478157,0.00049863,120]
[331480719,1720438011132,-4238.82,0.00049863,120]
[331480720,1720438011172,-532.42,0.00049863,120]
[331480721,1720438011210,-500.0,0.00049863,120]
[331480722,1720438011249,-500.0,0.00049863,120]
[331480723,1720438011288,-630.93852522,0.00049863,120]
[331480724,1720438011326,-3090.27,0.00049863,120]
[331480725,1720438011364,-500.0,0.00049863,120]
[331480726,1720438011402,-511.24,0.00049863,120]
[331480727,1720438011442,-500.0,0.00049863,120]
[331480728,1720438011482,-5448.63,0.00049863,120]
[331480729,1720438011518,-2062.26,0.00049863,120]
[331480730,1720438011558,-500.0,0.00049863,120]
[331480731,1720438011596,-2547.29,0.00049863,120]
[331480732,1720438011632,-500.0,0.00049863,120]
[331480733,1720438011669,-4594.83,0.00049863,120]
[331480734,1720438011706,-500.0,0.00049863,120]
[331480735,1720438011742,-500.0,0.00049863,120]
[331480736,1720438011778,-1773.39,0.00049863,120]
[331480737,1720438011813,-847.59,0.00049863,120]
[331480738,1720438011849,-722.73,0.00049863,120]
[331480739,1720438011886,-8365.78,0.00049863,120]
[331480740,1720438011924,-500.0,0.00049863,120]
[331480741,1720438011962,-500.0,0.00049863,120]
[331480742,1720438011997,-962.79,0.00049863,120]
[331480743,1720438012032,-1826.77,0.00049863,120]
[331480744,1720438012067,-500.0,0.00049863,120]
[331480745,1720438012102,-500.0,0.00049863,120]
[331480746,1720438012137,-500.0,0.00049863,120]
[331480747,1720438012172,-1768.04,0.00049863,120]
[331480748,1720438012209,-500.0,0.00049863,120]
[331480749,1720438012248,-1447.56,0.00049863,120]
[331480750,1720438012282,-4590.57,0.00049863,120]
[331480751,1720438012318,-1801.6,0.00049863,120]
[331480752,1720438012351,-500.0,0.00049863,120]
[331480753,1720438012384,-500.0,0.00049863,120]
[331480754,1720438012417,-2861.76,0.00049863,120]
[331480755,1720438012450,-500.0,0.00049863,120]
[331480756,1720438012482,-1122.87,0.00049863,120]
[331480757,1720438012513,-238.56237899,0.00049863,120]
[331480758,1720438012546,-500.0,0.00049863,120]
[331480759,1720438012579,-6551.73,0.00049863,120]
[331480760,1720438012610,-500.0,0.00049863,120]
[331480761,1720438012642,-526.91,0.00049863,120]
[331480762,1720438012674,-500.0,0.00049863,120]
[331480763,1720438012708,-659.22,0.00049863,120]
[331480764,1720438012740,-500.0,0.00049863,30]
[331480765,1720438012774,-500.0,0.00049863,120]
[331480766,1720438012810,-314.77,0.00049863,120]
[331480767,1720438012843,-500.0,0.00049863,120]
[331480768,1720438012877,-500.0,0.00049863,120]
[331480769,1720438012908,-500.0,0.00049863,120]
[331480770,1720438012941,-310.03882836,0.00049863,120]
[331480771,1720438012975,-686.39,0.00049863,120]
[331480772,1720438013008,-477.32438495,0.00049863,120]
[331480773,1720438013043,-1136.27,0.00049863,120]
[331480774,1720438013080,-242.04697772,0.00049863,120]
[331480775,1720438013116,-3164.35,0.00049863,120]
[331480776,1720438013151,-505.54,0.00049863,120]
[331480777,1720438013184,-1162.49,0.00049863,120]
[331480778,1720438013222,-1906.95,0.00049863,120]
[331480779,1720438013254,-310.86412284,0.00049863,120]
[331480780,1720438013288,-500.0,0.00049863,120]
[331480781,1720438013323,-1298.4,0.00049863,120]
[331480782,1720438013354,-1181.68,0.00049863,120]
[331480783,1720438013386,-500.0,0.00049863,120]
[331480784,1720438013419,-2349.1,0.00049863,120]
[331480785,1720438013451,-811.45,0.00049863,120]
[331480786,1720438013481,-500.0,0.00049863,120]
[331480787,1720438013514,-500.0,0.00049863,120]
[331480788,1720438013548,-500.0,0.00049863,120]
[331480789,1720438013584,-500.0,0.00049863,120]
[331480790,1720438013618,-2038.75,0.00049863,120]
[331480791,1720438013653,-759.35,0.00049863,120]
[331480792,1720438013687,-1664.25,0.00049863,120]
[331480793,1720438013720,-500.0,0.00049863,120]
[331480794,1720438013757,-500.0,0.00049863,120]
[331480795,1720438013794,-166.6666667,0.00049872,30]
[331480796,1720438014159,-171.05657457,0.00049954,30]
[331480797,1720438014203,-50000.0,0.0005,40]
[331480798,1720438014246,-50000.0,0.0005,50]
[331480799,1720438014283,-205.90024964,0.0005,120]
[331480800,1720438014322,-150.0,0.0005,120]
[331480801,1720438014361,-1691.69,0.0005,120]
[331480802,1720438014399,-200.0,0.0005,120]
[331480803,1720438014436,-169.83426134,0.00050065,60]
[331480804,1720438014476,-500.0,0.00050136,120]
[331480805,1720438014515,-500.0,0.00050136,120]
[331480806,1720438014557,-500.0,0.00050136,120]
[331480807,1720438014595,-500.0,0.00050136,120]
[331480808,1720438014633,-500.0,0.00050136,120]
[331480809,1720438014670,-500.0,0.00050136,120]
[331480810,1720438014707,-633.31,0.00050136,120]
[331480811,1720438014744,-500.0,0.00050136,120]
[331480812,1720438014783,-500.0,0.00050136,120]
[331480813,1720438014819,-500.0,0.00050136,120]
[331480814,1720438014854,-827.79,0.00050136,120]
[331480815,1720438014890,-1270.71,0.00050136,120]
[331480816,1720438014931,-2024.69,0.00050136,120]
[331480817,1720438014968,-500.0,0.00050136,120]
[331480818,1720438015003,-1741.22,0.00050136,120]
[331480819,1720438015038,-1241.64,0.00050136,120]
[331480820,1720438015074,-1264.41,0.00050136,120]
[331480821,1720438015108,-500.0,0.00050136,120]
[331480822,1720438015143,-812.78,0.00050136,120]
[331480823,1720438015177,-500.0,0.00050136,120]
[331480824,1720438015214,-500.0,0.00050136,120]
[331480825,1720438015253,-597.99,0.00050136,120]
[331480826,1720438015288,-500.0,0.00050136,120]
[331480827,1720438015328,-500.0,0.00050136,120]
[331480828,1720438015364,-500.0,0.00050136,120]
[331480829,1720438015402,-500.0,0.00050136,120]
[331480830,1720438015440,-592.5,0.00050136,120]
[331480831,1720438015477,-500.0,0.00050136,120]
[331480832,1720438015514,-500.0,0.00050136,120]
[331480833,1720438015553,-500.0,0.00050136,120]
[331480834,1720438015593,-500.0,0.00050136,120]
[331480835,1720438015630,-500.0,0.00050136,120]
[331480836,1720438015668,-1087.49,0.00050136,120]
[331480837,1720438015708,-500.0,0.00050136,120]
[331480838,1720438015743,-602.54,0.00050136,120]
[331480839,1720438015778,-978.12,0.00050136,120]
[331480840,1720438015814,-1694.76,0.00050136,120]
[331480841,1720438015853,-500.0,0.00050136,120]
[331480842,1720438015889,-596.86852035,0.00050136,120]
[331480843,1720438015927,-500.0,0.00050136,120]
[331480844,1720438015964,-1886.47,0.00050136,120]
[331480845,1720438015999,-1514.14,0.00050136,120]
[331480846,1720438016035,-500.0,0.00050136,120]
[331480847,1720438016072,-500.0,0.00050136,120]
[331480848,1720438016107,-500.0,0.00050136,120]
[331480849,1720438016144,-500.0,0.00050136,120]
[331480850,1720438016181,-500.0,0.00050136,120]
[331480851,1720438016217,-612.16,0.00050136,120]
[331480852,1720438016251,-500.0,0.00050136,120]
[331480853,1720438016286,-500.0,0.00050136,120]
[331480854,1720438016324,-859.41,0.00050136,120]
[331480855,1720438016359,-715.44,0.00050136,120]
[331480856,1720438016394,-500.0,0.00050136,120]
[331480857,1720438016430,-500.0,0.00050136,120]
[331480858,1720438016466,-1041.8,0.00050136,120]
[331480859,1720438016504,-500.0,0.00050136,120]
[331480860,1720438016540,-500.0,0.00050136,120]
[331480861,1720438016576,-500.0,0.00050136,120]
[331480862,1720438016612,-412.36639174,0.00050136,120]
[331480863,1720438016648,-1826.92,0.00050136,120]
[331480864,1720438016684,-500.0,0.00050136,120]
[331480865,1720438016719,-611.62,0.00050136,120]
[331480866,1720438016754,-500.0,0.00050136,120]
[331480867,1720438016793,-500.0,0.00050136,120]
[331480868,1720438016829,-500.0,0.00050136,120]
[331480869,1720438016864,-500.0,0.00050136,120]
[331480870,1720438016901,-500.0,0.00050136,120]
[331480871,1720438016942,-500.0,0.00050136,120]
[331480872,1720438016977,-500.0,0.00050136,120]
[331480873,1720438017011,-2300.26,0.00050136,120]
[331480874,1720438017045,-498.79856098,0.00050136,120]
[331480875,1720438017080,-500.0,0.00050136,120]
[331480876,1720438017116,-500.0,0.00050136,120]
[331480877,1720438017152,-500.0,0.00050136,120]
[331480878,1720438017185,-500.0,0.00050136,120]
[331480879,1720438017222,-500.0,0.00050136,120]
[331480880,1720438017256,-500.0,0.00050136,120]
[331480881,1720438017292,-2614.96,0.00050136,120]
[331480882,1720438017328,-500.0,0.00050136,120]
[331480883,1720438017362,-500.0,0.00050136,120]
[331480884,1720438017398,-2148.51,0.00050136,120]
[331480885,1720438017431,-500.0,0.00050136,120]
[331480886,1720438017466,-500.0,0.00050136,120]
[331480887,1720438017502,-500.0,0.00050136,120]
[331480888,1720438017538,-633.82,0.00050136,120]
[331480889,1720438017573,-500.0,0.00050136,120]
[331480890,1720438017608,-1837.33,0.00050136,120]
[331480891,1720438017643,-500.0,0.00050136,120]
[331480892,1720438017679,-500.0,0.00050136,120]
[331480893,1720438017716,-500.0,0.00050136,120]
[331480894,1720438017751,-500.0,0.00050136,120]
[331480895,1720438017786,-522.56,0.00050136,120]
[331480896,1720438017820,-500.0,0.00050136,120]
[331480897,1720438017863,-500.0,0.00050136,120]
[331480898,1720438017899,-500.0,0.00050136,120]
[331480899,1720438017937,-1448.04,0.00050136,120]
[331480900,1720438017972,-2564.45,0.00050136,120]
[331480901,1720438018008,-852.59,0.00050136,120]
[331480902,1720438018045,-500.0,0.00050136,120]
[331480903,1720438018082,-2132.97,0.00050136,120]
[331480904,1720438018116,-500.0,0.00050136,120]
[331480905,1720438018151,-500.0,0.00050136,120]
[331480906,1720438018187,-500.0,0.00050136,120]
[331480907,1720438018223,-500.0,0.00050136,120]
[331480908,1720438018258,-679.05,0.00050136,120]
[331480909,1720438018294,-500.0,0.00050136,120]
[331480910,1720438018329,-2109.64,0.00050136,120]
[331480911,1720438018362,-600.73,0.00050136,120]
[331480912,1720438018398,-578.68,0.00050136,120]
[331480913,1720438018435,-1115.3,0.00050136,120]
[331480914,1720438018470,-500.0,0.00050136,120]
[331480915,1720438018504,-500.0,0.00050136,120]
[331480916,1720438018540,-1725.52,0.00050136,120]
[331480917,1720438018574,-500.0,0.00050136,120]
[331480918,1720438018609,-500.0,0.00050136,120]
[331480919,1720438018646,-500.0,0.00050136,120]
[331480920,1720438018684,-723.07,0.00050136,120]
[331480921,1720438018721,-1003.07,0.00050136,120]
[331480922,1720438018757,-981.91,0.00050136,120]
[331480923,1720438018793,-503.00396915,0.00050136,120]
[331480924,1720438018829,-500.0,0.00050136,120]
[331480925,1720438018866,-500.0,0.00050136,120]
[331480926,1720438018904,-622.24,0.00050136,120]
[331480927,1720438018945,-500.0,0.00050136,120]
[331480928,1720438018994,-500.0,0.00050136,120]
[331480929,1720438019038,-500.0,0.00050136,120]
[331480930,1720438019081,-482.37131438,0.00050136,120]
[331480931,1720438019124,-745.91,0.00050136,120]
[331480932,1720438019168,-500.0,0.00050136,120]
[331480933,1720438019214,-594.32,0.00050136,120]
[331480934,1720438019262,-870.94,0.00050136,120]
[331480935,1720438019304,-623.11,0.00050136,120]
[331480936,1720438019350,-500.0,0.00050136,120]
[331480937,1720438019394,-453.30176963,0.00050136,120]
[331480938,1720438019435,-490.55287911,0.00050136,120]
[331480939,1720438019479,-1347.4,0.00050136,120]
[331480940,1720438019524,-500.0,0.00050136,120]
[331480941,1720438019570,-500.0,0.00050136,120]
[331480942,1720438019615,-652.48,0.00050136,120]
[331480943,1720438019655,-560.3,0.00050136,120]
[331480944,1720438019700,-978.58,0.00050136,120]
[331480945,1720438019744,-500.0,0.00050136,120]
[331480946,1720438019785,-1040.65,0.00050136,120]
[331480947,1720438019828,-2087.12,0.00050136,120]
[331480948,1720438019872,-500.0,0.00050136,120]
[331480949,1720438019914,-500.0,0.00050136,120]
[331480950,1720438019957,-500.0,0.00050136,120]
[331480951,1720438020001,-555.79,0.00050136,120]
[331480952,1720438020045,-500.0,0.00050136,120]
[331480953,1720438020090,-1043.43,0.00050136,120]
[331480954,1720438020135,-500.0,0.00050136,120]
[331480955,1720438020182,-500.0,0.00050136,120]
[331480956,1720438020234,-1696.47,0.00050136,120]
[331480957,1720438020286,-500.0,0.00050136,120]
[331480958,1720438020338,-500.0,0.00050136,120]
[331480959,1720438020382,-500.0,0.00050136,120]
[331480960,1720438020426,-1292.22,0.00050136,120]
[331480961,1720438020469,-500.0,0.00050136,120]
[331480962,1720438020513,-557.25,0.00050136,120]
[331480963,1720438020556,-500.0,0.00050136,120]
[331480964,1720438020602,-1700.15,0.00050136,120]
[331480965,1720438020656,-500.0,0.00050136,120]
[331480966,1720438020698,-653.46,0.00050136,120]
[331480967,1720438020744,-500.0,0.00050136,120]
[331480968,1720438020786,-1020.7,0.00050136,120]
[331480969,1720438020828,-731.92,0.00050136,120]
[331480970,1720438020871,-515.36,0.00050136,120]
[331480971,1720438020911,-500.0,0.00050136,120]
[331480972,1720438021781,-500.0,0.00050136,120]
[331480973,1720438021826,-1070.52,0.00050136,120]
[331480974,1720438021868,-783.21,0.00050136,120]
[331480975,1720438021906,-500.0,0.00050136,120]
[331480976,1720438021943,-500.0,0.00050136,120]
[331480977,1720438021981,-813.62,0.00050136,120]
[331480978,1720438022017,-1354.07,0.00050136,120]
[331480979,1720438022053,-1435.39,0.00050136,120]
[331480980,1720438022089,-500.0,0.00050136,120]
[331480981,1720438022124,-564.74,0.00050136,120]
[331480982,1720438022159,-500.0,0.00050136,120]
[331480983,1720438022194,-500.0,0.00050136,120]
[331480984,1720438022236,-500.0,0.00050136,120]
[331480985,1720438022273,-500.0,0.00050136,120]
[331480986,1720438022312,-500.0,0.00050136,120]
[331480987,1720438022352,-763.67,0.00050136,120]
[331480988,1720438022387,-2022.23,0.00050136,120]
[331480989,1720438022423,-500.0,0.00050136,120]
[331480990,1720438022458,-500.0,0.00050136,120]
[331480991,1720438022493,-500.0,0.00050136,120]
[331480992,1720438022528,-500.0,0.00050136,120]
[331480993,1720438022565,-500.0,0.00050136,120]
[331480994,1720438022603,-524.75,0.00050136,120]
[331480995,1720438022638,-156.36182248,0.00050136,120]
[331480996,1720438022674,-2292.61,0.00050136,120]
[331480997,1720438022710,-1256.24,0.00050136,120]
[331480998,1720438022745,-1240.02,0.00050136,120]
[331480999,1720438022780,-500.0,0.00050136,120]
[331481000,1720438022821,-2191.34,0.00050136,120]
[331481001,1720438022857,-500.0,0.00050136,120]
[331481002,1720438022892,-500.0,0.00050136,120]
[331481003,1720438022930,-526.64,0.00050136,120]
[331481004,1720438022966,-518.09,0.00050136,120]
[331481005,1720438023002,-500.0,0.00050136,120]
[331481006,1720438023040,-500.0,0.00050136,120]
[331481007,1720438023076,-500.0,0.00050136,120]
[331481008,1720438023111,-500.0,0.00050136,120]
[331481009,1720438023145,-500.0,0.00050136,120]
[331481010,1720438023181,-500.0,0.00050136,120]
[331481011,1720438023218,-500.0,0.00050136,120]
[331481012,1720438023254,-500.0,0.00050136,120]
[331481013,1720438023289,-500.0,0.00050136,120]
[331481014,1720438023329,-500.0,0.00050136,120]
[331481015,1720438023365,-501.4335073,0.00050136,120]
[331481016,1720438023400,-1483.16,0.00050136,120]
[331481017,1720438023436,-500.0,0.00050136,120]
[331481018,1720438023472,-729.55,0.00050136,120]
[331481019,1720438023509,-500.0,0.00050136,120]
[331481020,1720438023560,-506.47008405,0.00050136,120]
[331481021,1720438023602,-581.75,0.00050136,120]
[331481022,1720438023637,-500.0,0.00050136,120]
[331481023,1720438023673,-500.0,0.00050136,120]
[331481024,1720438023709,-500.0,0.00050136,120]
[331481025,1720438023746,-500.0,0.00050136,120]
[331481026,1720438023782,-1051.68,0.00050136,120]
[331481027,1720438023818,-500.0,0.00050136,120]
[331481028,1720438023856,-500.0,0.00050136,120]
[331481029,1720438023892,-500.0,0.00050136,120]
[331481030,1720438023930,-500.0,0.00050136,120]
[331481031,1720438023970,-500.0,0.00050136,120]
[331481032,1720438024012,-553.77,0.00050136,120]
[331481033,1720438024049,-500.0,0.00050136,120]
[331481034,1720438024093,-790.33,0.00050136,120]
[331481035,1720438024133,-625.62,0.00050136,120]
[331481036,1720438024171,-755.84,0.00050136,120]
[331481037,1720438024210,-500.0,0.00050136,120]
[331481038,1720438024248,-1285.43,0.00050136,120]
[331481039,1720438024287,-500.0,0.00050136,120]
[331481040,1720438024328,-500.0,0.00050136,120]
[331481041,1720438024368,-838.12,0.00050136,120]
[331481042,1720438024407,-500.0,0.00050136,120]
[331481043,1720438024446,-500.0,0.00050136,120]
[331481044,1720438024482,-1091.2,0.00050136,120]
[331481045,1720438024520,-757.21,0.00050136,120]
[331481046,1720438024558,-500.0,0.00050136,120]
[331481047,1720438024598,-500.0,0.00050136,120]